[Event "Kwalificatie NJK A Groningen"]
[Site "Hoogkerk, Netherlands"]
[Date "2023.02.18"]
[Round "3.5"]
[White "Smid, Jelle"]
[Black "Wierenga, JaÃ«l"]
[Result "0-1"]
[TimeControl "55 min. + 10 sec./zet"]
[WhiteElo "1920"]
[BlackElo "1879"]

1. c4 {[%clk 00:55:17]} {[%emt 00:00:02]} e6 {[%clk 00:55:15]} {[%emt
00:00:06]} 2. Nf3 {[%clk 00:54:28]} {[%emt 00:00:59]} d5 {[%clk 00:55:13]}
{[%emt 00:00:12]} 3. e3 {[%clk 00:53:47]} {[%emt 00:00:51]} a6 {[%clk
00:54:41]} {[%emt 00:00:43]} 4. b3 {[%clk 00:53:31]} {[%emt 00:00:25]} Nf6
{[%clk 00:54:37]} {[%emt 00:00:14]} 5. Bb2 {[%clk 00:53:35]} {[%emt 00:00:07]}
Bd6 {[%clk 00:54:11]} {[%emt 00:00:36]} 6. Nc3 {[%clk 00:51:36]} {[%emt
00:02:09]} O-O {[%clk 00:54:11]} {[%emt 00:00:10]} 7. d4 {[%clk 00:49:11]}
{[%emt 00:02:34]} b6 {[%clk 00:53:29]} {[%emt 00:00:53]} 8. Bd3 {[%clk
00:48:36]} {[%emt 00:00:44]} Bb7 {[%clk 00:53:19]} {[%emt 00:00:20]} 9. O-O
{[%clk 00:48:06]} {[%emt 00:00:40]} Nbd7 {[%clk 00:53:02]} {[%emt 00:00:28]} 10.
Qc2 {[%clk 00:43:31]} {[%emt 00:04:44]} c5 {[%clk 00:51:43]} {[%emt 00:01:29]}
11. cxd5 {[%clk 00:43:09]} {[%emt 00:00:32]} exd5 {[%clk 00:51:35]} {[%emt
00:00:18]} 12. Bf5 {[%clk 00:38:58]} {[%emt 00:04:20]} Re8 {[%clk 00:47:56]}
{[%emt 00:03:50]} 13. Rfd1 {[%clk 00:38:32]} {[%emt 00:00:36]} g6 {[%clk
00:42:42]} {[%emt 00:05:25]} 14. Bh3 {[%clk 00:37:12]} {[%emt 00:01:29]} Qc7
{[%clk 00:40:37]} {[%emt 00:02:16]} 15. dxc5 {[%clk 00:32:44]} {[%emt
00:04:38]} bxc5 {[%clk 00:40:36]} {[%emt 00:00:11]} 16. Bxd7 {[%clk 00:27:12]}
{[%emt 00:05:41]} Qxd7 {[%clk 00:39:11]} {[%emt 00:01:35]} 17. Na4 {[%clk
00:27:06]} {[%emt 00:00:16]} Qe6 {[%clk 00:36:15]} {[%emt 00:03:05]} 18. Qc3
{[%clk 00:23:10]} {[%emt 00:04:08]} d4 {[%clk 00:34:58]} {[%emt 00:01:26]} 19.
exd4 {[%clk 00:22:45]} {[%emt 00:00:34]} cxd4 {[%clk 00:28:46]} {[%emt
00:06:23]} 20. Nxd4 {[%clk 00:07:38]} {[%emt 00:15:18]} Qg4 {[%clk 00:21:21]}
{[%emt 00:07:33]} 21. Nc6 {[%clk 00:06:08]} {[%emt 00:01:41]} Be5 {[%clk
00:20:30]} {[%emt 00:01:02]} 22. Qc5 {[%clk 00:04:20]} {[%emt 00:01:57]} Bxc6
{[%clk 00:14:00]} {[%emt 00:06:40]} 23. Qxc6 {[%clk 00:04:16]} {[%emt
00:00:14]} Bxh2+ {[%clk 00:13:39]} {[%emt 00:00:29]} 24. Kxh2 {[%clk 00:03:54]}
{[%emt 00:00:34]} Qh4+ {[%clk 00:13:43]} {[%emt 00:00:06]} 25. Kg1 {[%clk
00:03:57]} {[%emt 00:00:07]} Ng4 {[%clk 00:13:40]} {[%emt 00:00:13]} 26. g3
{[%clk 00:03:32]} {[%emt 00:00:35]} Qh2+ {[%clk 00:13:44]} {[%emt 00:00:07]} 27.
Kf1 {[%clk 00:03:36]} {[%emt 00:00:05]} Qxf2# {[%clk 00:13:38]} {[%emt
00:00:05]} 0-1

[Event "Kwalificatie NJK A Groningen"]
[Site "Hoogkerk, Netherlands"]
[Date "2023.02.18"]
[Round "3.6"]
[White "Lankester, Felix"]
[Black "Staal, Ryan"]
[Result "1/2-1/2"]
[TimeControl "55 min. + 10 sec./zet"]
[WhiteElo "1600"]
[BlackElo "1911"]

1. Nf3 {[%clk 00:55:05]} {[%emt 00:00:14]} d5 {[%emt 00:00:20]} 2. d4 {[%clk
00:55:10]} Bf5 {[%clk 00:55:11]} {[%emt 00:00:05]} 3. c4 {[%clk 00:55:16]}
{[%emt 00:00:03]} e6 {[%clk 00:54:57]} {[%emt 00:00:25]} 4. Nc3 {[%clk
00:55:09]} {[%emt 00:00:17]} Nf6 {[%clk 00:54:56]} {[%emt 00:00:11]} 5. Bg5
{[%clk 00:55:12]} {[%emt 00:00:06]} Nc6 {[%clk 00:54:08]} {[%emt 00:00:58]} 6.
e3 {[%clk 00:55:09]} {[%emt 00:00:13]} h6 {[%clk 00:54:08]} {[%emt 00:00:11]} 7.
Bh4 {[%clk 00:55:14]} {[%emt 00:00:05]} Be7 {[%clk 00:54:12]} {[%emt 00:00:06]}
8. cxd5 {[%clk 00:53:16]} {[%emt 00:02:08]} Nxd5 {[%clk 00:54:09]} {[%emt
00:00:13]} 9. Nxd5 {[%clk 00:52:52]} {[%emt 00:00:33]} exd5 {[%clk 00:54:01]}
{[%emt 00:00:19]} 10. Bxe7 {[%clk 00:52:31]} {[%emt 00:00:31]} Qxe7 {[%clk
00:54:02]} {[%emt 00:00:09]} 11. Be2 {[%clk 00:51:33]} {[%emt 00:01:08]} O-O
{[%clk 00:54:04]} {[%emt 00:00:07]} 12. O-O {[%clk 00:51:38]} {[%emt 00:00:05]}
Qf6 {[%clk 00:51:59]} {[%emt 00:02:15]} 13. Bd3 {[%clk 00:50:22]} {[%emt
00:01:26]} Bg4 {[%clk 00:51:05]} {[%emt 00:01:05]} 14. Be2 {[%clk 00:50:14]}
{[%emt 00:00:18]} Rac8 {[%clk 00:49:52]} {[%emt 00:01:23]} 15. h3 {[%clk
00:50:05]} {[%emt 00:00:18]} Bh5 {[%clk 00:49:48]} {[%emt 00:00:14]} 16. Qb3
{[%clk 00:48:32]} {[%emt 00:01:43]} Qd6 {[%clk 00:48:56]} {[%emt 00:01:02]} 17.
Rac1 {[%clk 00:45:58]} {[%emt 00:02:46]} Rb8 {[%clk 00:45:40]} {[%emt
00:03:26]} 18. Rfe1 {[%clk 00:43:25]} {[%emt 00:02:42]} Rfe8 {[%clk 00:43:53]}
{[%emt 00:01:56]} 19. Qc3 {[%clk 00:39:52]} {[%emt 00:03:44]} f5 {[%clk
00:39:52]} {[%emt 00:04:11]} 20. Qd2 {[%clk 00:35:34]} {[%emt 00:04:28]} Rf8
{[%clk 00:33:51]} {[%emt 00:06:11]} 21. Nh2 {[%clk 00:32:06]} {[%emt 00:03:38]}
Bxe2 {[%clk 00:33:37]} {[%emt 00:00:24]} 22. Rxe2 {[%clk 00:31:55]} {[%emt
00:00:19]} Rbe8 {[%clk 00:33:13]} {[%emt 00:00:35]} 23. f4 {[%clk 00:30:50]}
{[%emt 00:01:16]} Rf7 {[%clk 00:31:28]} {[%emt 00:01:55]} 24. Nf3 {[%clk
00:30:44]} {[%emt 00:00:15]} a6 {[%clk 00:28:53]} {[%emt 00:02:47]} 25. a3
{[%clk 00:29:18]} {[%emt 00:01:36]} Qg6 {[%clk 00:27:40]} {[%emt 00:01:22]} 26.
Qe1 {[%clk 00:28:34]} {[%emt 00:00:53]} Rfe7 {[%clk 00:26:59]} {[%emt
00:00:51]} 27. Rc5 {[%clk 00:26:16]} {[%emt 00:02:29]} Qd6 {[%clk 00:24:37]}
{[%emt 00:02:32]} 28. b4 {[%clk 00:24:46]} {[%emt 00:01:40]} Kh7 {[%clk
00:21:02]} {[%emt 00:03:45]} 29. Qd2 {[%clk 00:23:22]} {[%emt 00:01:33]} Nd8
{[%clk 00:17:22]} {[%emt 00:03:51]} 30. Kf2 {[%clk 00:22:07]} {[%emt 00:01:24]}
Ne6 {[%clk 00:16:21]} {[%emt 00:01:11]} 31. Rc2 {[%clk 00:22:12]} {[%emt
00:00:06]} Nxf4 {[%clk 00:15:20]} {[%emt 00:01:11]} 32. Re1 {[%clk 00:21:53]}
{[%emt 00:00:29]} Ng6 {[%clk 00:14:55]} {[%emt 00:00:35]} 33. Qd3 {[%clk
00:21:22]} {[%emt 00:00:41]} f4 {[%clk 00:14:25]} {[%emt 00:00:40]} 34. Rce2
{[%clk 00:20:30]} {[%emt 00:01:01]} Kg8 {[%clk 00:12:36]} {[%emt 00:01:59]} 35.
e4 {[%clk 00:20:12]} {[%emt 00:00:29]} dxe4 {[%clk 00:12:02]} {[%emt 00:00:44]}
36. Rxe4 {[%clk 00:20:17]} {[%emt 00:00:04]} Rxe4 {[%clk 00:11:15]} {[%emt
00:00:58]} 37. Rxe4 {[%clk 00:20:25]} {[%emt 00:00:02]} Rxe4 {[%clk 00:11:23]}
{[%emt 00:00:01]} 38. Qxe4 {[%clk 00:20:33]} {[%emt 00:00:02]} c6 {[%clk
00:10:37]} {[%emt 00:00:57]} 39. Nd2 {[%clk 00:19:17]} {[%emt 00:01:26]} Qf6
{[%clk 00:09:11]} {[%emt 00:01:37]} 40. Nc4 {[%clk 00:17:53]} {[%emt 00:01:33]}
Qh4+ {[%clk 00:08:04]} {[%emt 00:01:16]} 41. Kf1 {[%clk 00:18:01]} {[%emt
00:00:02]} Qg3 {[%clk 00:07:26]} {[%emt 00:00:48]} 42. Na5 {[%clk 00:16:48]}
{[%emt 00:01:23]} Nh4 {[%clk 00:05:48]} {[%emt 00:01:48]} 43. Qe8+ {[%clk
00:16:28]} {[%emt 00:00:31]} Kh7 {[%clk 00:05:24]} {[%emt 00:00:35]} 44. Qe4+
{[%clk 00:16:36]} {[%emt 00:00:02]} 1/2-1/2

[Event "Kwalificatie NJK A Groningen"]
[Site "Hoogkerk, Netherlands"]
[Date "2023.02.18"]
[Round "3.7"]
[White "Nitrauw, Peter"]
[Black "Bos, Eric"]
[Result "1-0"]
[TimeControl "55 min. + 10 sec./zet"]
[WhiteElo "1763"]
[BlackElo "1596"]

1. d4 {[%clk 00:55:19]} Nf6 {[%clk 00:55:13]} {[%emt 00:00:07]} 2. Bf4 {[%clk
00:55:24]} {[%emt 00:00:04]} d5 {[%clk 00:55:16]} {[%emt 00:00:08]} 3. Nf3
{[%clk 00:55:27]} {[%emt 00:00:08]} Bf5 {[%clk 00:55:21]} {[%emt 00:00:05]} 4.
e3 {[%clk 00:55:13]} {[%emt 00:00:23]} e6 {[%clk 00:55:30]} {[%emt 00:00:01]} 5.
Nbd2 {[%clk 00:54:59]} {[%emt 00:00:24]} Bd6 {[%clk 00:55:21]} {[%emt
00:00:19]} 6. Bg3 {[%clk 00:54:49]} {[%emt 00:00:20]} O-O {[%clk 00:55:18]}
{[%emt 00:00:13]} 7. Nh4 {[%clk 00:53:53]} {[%emt 00:01:06]} Bg4 {[%clk
00:52:51]} {[%emt 00:02:38]} 8. Be2 {[%clk 00:53:17]} {[%emt 00:00:45]} Bxe2
{[%clk 00:52:41]} {[%emt 00:00:21]} 9. Qxe2 {[%clk 00:53:22]} {[%emt 00:00:05]}
Nbd7 {[%clk 00:49:37]} {[%emt 00:03:13]} 10. c3 {[%clk 00:51:31]} {[%emt
00:02:02]} g6 {[%clk 00:46:36]} {[%emt 00:03:10]} 11. Nhf3 {[%clk 00:50:46]}
{[%emt 00:00:56]} Re8 {[%clk 00:44:13]} {[%emt 00:02:33]} 12. O-O {[%clk
00:46:51]} {[%emt 00:04:04]} e5 {[%clk 00:40:55]} {[%emt 00:03:28]} 13. dxe5
{[%clk 00:46:14]} {[%emt 00:00:47]} Nxe5 {[%clk 00:40:39]} {[%emt 00:00:26]} 14.
Nxe5 {[%clk 00:45:51]} {[%emt 00:00:33]} Bxe5 {[%clk 00:40:40]} {[%emt
00:00:09]} 15. Bxe5 {[%clk 00:45:47]} {[%emt 00:00:15]} Rxe5 {[%clk 00:40:48]}
{[%emt 00:00:02]} 16. Nf3 {[%clk 00:45:43]} {[%emt 00:00:13]} Re7 {[%clk
00:39:10]} {[%emt 00:01:48]} 17. Rfd1 {[%clk 00:44:55]} {[%emt 00:00:58]} c6
{[%clk 00:36:37]} {[%emt 00:02:44]} 18. c4 {[%clk 00:42:09]} {[%emt 00:02:55]}
Qb6 {[%clk 00:33:17]} {[%emt 00:03:30]} 19. cxd5 {[%clk 00:40:41]} {[%emt
00:01:39]} Nxd5 {[%clk 00:32:54]} {[%emt 00:00:32]} 20. Rac1 {[%clk 00:38:41]}
{[%emt 00:02:09]} Rae8 {[%clk 00:30:40]} {[%emt 00:02:25]} 21. Nd4 {[%clk
00:34:28]} {[%emt 00:04:23]} Re4 {[%clk 00:25:55]} {[%emt 00:04:55]} 22. Nb3
{[%clk 00:29:27]} {[%emt 00:05:10]} f5 {[%clk 00:22:27]} {[%emt 00:03:39]} 23.
Qc2 {[%clk 00:16:09]} {[%emt 00:13:28]} Nb4 {[%clk 00:16:21]} {[%emt 00:06:16]}
24. Qb1 {[%clk 00:12:07]} {[%emt 00:04:12]} Nd5 {[%clk 00:13:54]} {[%emt
00:02:37]} 25. Nc5 {[%clk 00:11:31]} {[%emt 00:00:46]} R4e7 {[%clk 00:12:47]}
{[%emt 00:01:17]} 26. Qc2 {[%clk 00:11:10]} {[%emt 00:00:31]} Qc7 {[%clk
00:11:24]} {[%emt 00:01:33]} 27. Qb3 {[%clk 00:10:20]} {[%emt 00:01:00]} b6
{[%clk 00:10:50]} {[%emt 00:00:43]} 28. Na6 {[%clk 00:10:13]} {[%emt 00:00:18]}
Qb7 {[%clk 00:10:33]} {[%emt 00:00:27]} 29. Nb4 {[%clk 00:10:17]} {[%emt
00:00:06]} Rd7 {[%clk 00:08:46]} {[%emt 00:01:57]} 30. Rxc6 {[%clk 00:09:43]}
{[%emt 00:00:43]} a5 {[%clk 00:07:48]} {[%emt 00:01:09]} 31. Rxd5 {[%clk
00:09:40]} {[%emt 00:00:13]} Rxd5 {[%clk 00:07:11]} {[%emt 00:00:47]} 32. Nxd5
{[%clk 00:09:13]} {[%emt 00:00:38]} a4 {[%clk 00:05:15]} {[%emt 00:02:05]} 33.
Nf6+ {[%clk 00:07:05]} {[%emt 00:02:18]} Kh8 {[%clk 00:04:11]} {[%emt
00:01:14]} 34. Qc3 {[%clk 00:06:49]} {[%emt 00:00:26]} Rd8 {[%clk 00:03:41]}
{[%emt 00:00:40]} 35. Nd7+ {[%clk 00:05:46]} {[%emt 00:01:12]} Kg8 {[%clk
00:03:39]} {[%emt 00:00:12]} 36. Qc4+ {[%clk 00:05:17]} {[%emt 00:00:39]} Kg7
{[%clk 00:03:33]} {[%emt 00:00:17]} 37. Qd4+ {[%clk 00:05:12]} {[%emt
00:00:15]} Kf7 {[%clk 00:02:51]} {[%emt 00:00:53]} 38. Qf6+ {[%emt 00:01:43]}
1-0

[Event "Kwalificatie NJK A Groningen"]
[Site "Hoogkerk, Netherlands"]
[Date "2023.02.18"]
[Round "3.8"]
[White "Alvares, Thomas"]
[Black "Visser, Berend"]
[Result "1-0"]
[TimeControl "55 min. + 10 sec./zet"]
[WhiteElo "1855"]
[BlackElo "1525"]

1. e4 {[%clk 00:55:17]} {[%emt 00:00:02]} c5 {[%clk 00:55:16]} {[%emt
00:00:05]} 2. Nf3 {[%clk 00:55:19]} {[%emt 00:00:07]} Nc6 {[%clk 00:55:22]}
{[%emt 00:00:04]} 3. d4 {[%clk 00:55:25]} {[%emt 00:00:04]} cxd4 {[%clk
00:55:29]} {[%emt 00:00:04]} 4. Nxd4 {[%clk 00:55:29]} {[%emt 00:00:05]} g6
{[%clk 00:55:35]} {[%emt 00:00:04]} 5. c4 {[%clk 00:55:30]} {[%emt 00:00:09]}
Bg7 {[%clk 00:55:37]} {[%emt 00:00:08]} 6. Be3 {[%clk 00:55:33]} {[%emt
00:00:07]} Nf6 {[%clk 00:55:42]} {[%emt 00:00:06]} 7. Nc3 {[%clk 00:55:18]}
{[%emt 00:00:24]} Ng4 {[%clk 00:52:36]} {[%emt 00:03:17]} 8. Qxg4 {[%clk
00:53:08]} {[%emt 00:02:20]} Nxd4 {[%clk 00:52:41]} {[%emt 00:00:04]} 9. Qd1
{[%clk 00:52:37]} {[%emt 00:00:41]} Ne6 {[%clk 00:52:47]} {[%emt 00:00:05]} 10.
Qd2 {[%clk 00:51:45]} {[%emt 00:01:02]} h6 {[%clk 00:46:56]} {[%emt 00:06:00]}
11. Be2 {[%clk 00:50:39]} {[%emt 00:01:16]} b6 {[%clk 00:45:07]} {[%emt
00:01:59]} 12. O-O {[%clk 00:49:19]} {[%emt 00:01:30]} Ba6 {[%clk 00:44:44]}
{[%emt 00:00:34]} 13. Rac1 {[%clk 00:48:21]} {[%emt 00:01:08]} Rc8 {[%clk
00:43:51]} {[%emt 00:01:02]} 14. b3 {[%clk 00:47:30]} {[%emt 00:01:01]} Qc7
{[%clk 00:39:53]} {[%emt 00:04:09]} 15. Rfd1 {[%clk 00:45:49]} {[%emt
00:01:49]} Nc5 {[%clk 00:36:16]} {[%emt 00:03:48]} 16. f3 {[%clk 00:41:50]}
{[%emt 00:04:09]} g5 {[%clk 00:30:55]} {[%emt 00:05:31]} 17. Nd5 {[%clk
00:40:30]} {[%emt 00:01:30]} Qe5 {[%clk 00:27:15]} {[%emt 00:03:49]} 18. b4
{[%clk 00:29:38]} {[%emt 00:11:02]} Ne6 {[%clk 00:26:00]} {[%emt 00:01:26]} 19.
b5 {[%clk 00:28:39]} {[%emt 00:01:09]} Bb7 {[%clk 00:26:03]} {[%emt 00:00:07]}
20. Nxb6 {[%clk 00:27:47]} {[%emt 00:01:02]} axb6 {[%clk 00:22:23]} {[%emt
00:03:51]} 21. Qxd7+ {[%clk 00:27:46]} Kf8 {[%clk 00:22:23]} {[%emt 00:00:20]}
22. Qxb7 {[%clk 00:27:35]} {[%emt 00:00:21]} Rb8 {[%clk 00:21:26]} {[%emt
00:01:07]} 23. Qc6 {[%clk 00:26:31]} {[%emt 00:01:14]} Qb2 {[%clk 00:19:36]}
{[%emt 00:02:00]} 24. Bf1 {[%clk 00:24:47]} {[%emt 00:01:54]} Qxa2 {[%clk
00:19:07]} {[%emt 00:00:39]} 25. Bxb6 {[%clk 00:22:16]} {[%emt 00:02:41]} Qb2
{[%clk 00:16:53]} {[%emt 00:02:25]} 26. Bc5 {[%clk 00:19:08]} {[%emt 00:03:17]}
Nd4 {[%clk 00:15:50]} {[%emt 00:01:13]} 27. Qd5 {[%clk 00:18:13]} {[%emt
00:01:05]} Ne6 {[%clk 00:14:11]} {[%emt 00:01:49]} 28. e5 {[%clk 00:17:19]}
{[%emt 00:01:03]} Bxe5 {[%clk 00:12:08]} {[%emt 00:02:15]} 29. Rb1 {[%clk
00:12:09]} {[%emt 00:05:19]} Qc3 {[%clk 00:11:36]} {[%emt 00:00:42]} 30. Rd3
{[%clk 00:11:00]} {[%emt 00:01:19]} Nf4 {[%clk 00:06:17]} {[%emt 00:05:29]} 31.
Rxc3 {[%clk 00:07:40]} {[%emt 00:03:31]} Nxd5 {[%clk 00:06:09]} {[%emt
00:00:18]} 32. Rd3 {[%clk 00:06:56]} {[%emt 00:00:53]} Nf4 {[%clk 00:05:31]}
{[%emt 00:00:48]} 33. Rd7 {[%clk 00:06:45]} {[%emt 00:00:21]} Bf6 {[%clk
00:05:07]} {[%emt 00:00:35]} 34. Rbd1 {[%clk 00:06:02]} {[%emt 00:00:53]} Ne6
{[%clk 00:05:01]} {[%emt 00:00:16]} 35. Ba7 {[%clk 00:04:33]} {[%emt 00:01:38]}
Rc8 {[%clk 00:04:26]} {[%emt 00:00:45]} 36. b6 {[%clk 00:03:07]} {[%emt
00:01:36]} Nc5 {[%clk 00:03:47]} {[%emt 00:00:49]} 37. Rc7 {[%clk 00:02:42]}
{[%emt 00:00:35]} Kg7 {[%clk 00:03:41]} {[%emt 00:00:16]} 38. Rd5 {[%clk
00:01:58]} {[%emt 00:00:53]} Rxc7 {[%clk 00:03:12]} {[%emt 00:00:41]} 39. bxc7
{[%clk 00:02:06]} {[%emt 00:00:02]} Ne6 {[%clk 00:02:50]} {[%emt 00:00:31]} 40.
Bb6 {[%clk 00:01:36]} {[%emt 00:00:40]} Rc8 {[%clk 00:01:48]} {[%emt 00:01:12]}
41. Rd8 {[%clk 00:01:09]} {[%emt 00:00:37]} Nxd8 {[%clk 00:01:35]} {[%emt
00:00:23]} 42. cxd8=Q {[%clk 00:01:15]} {[%emt 00:00:05]} Rxd8 {[%clk
00:01:42]} {[%emt 00:00:02]} 43. Bxd8 {[%clk 00:01:23]} {[%emt 00:00:02]} Bd4+
{[%clk 00:01:50]} {[%emt 00:00:01]} 44. Kh1 {[%clk 00:01:32]} {[%emt 00:00:02]}
e5 {[%clk 00:01:42]} {[%emt 00:00:18]} 45. Bd3 {[%clk 00:01:09]} {[%emt
00:00:32]} Kf8 {[%clk 00:01:21]} {[%emt 00:00:33]} 46. g3 {[%clk 00:00:49]}
{[%emt 00:00:30]} Ke8 {[%clk 00:01:29]} {[%emt 00:00:01]} 47. Ba5 {[%clk
00:00:48]} {[%emt 00:00:11]} Kd7 {[%clk 00:01:32]} {[%emt 00:00:08]} 48. Kg2
{[%clk 00:00:32]} {[%emt 00:00:26]} Ke6 {[%clk 00:01:30]} {[%emt 00:00:11]} 49.
g4 {[%clk 00:00:24]} {[%emt 00:00:18]} Kd6 {[%clk 00:01:29]} {[%emt 00:00:11]}
50. Bb4+ {[%clk 00:00:27]} {[%emt 00:00:07]} Ke6 {[%clk 00:01:29]} {[%emt
00:00:10]} 51. Bf5+ {[%clk 00:00:29]} {[%emt 00:00:08]} Kf6 {[%clk 00:01:30]}
{[%emt 00:00:09]} 52. c5 {[%clk 00:00:33]} {[%emt 00:00:06]} h5 {[%clk
00:00:37]} {[%emt 00:01:03]} 53. c6 {[%clk 00:00:28]} {[%emt 00:00:15]} Bb6
{[%clk 00:00:43]} {[%emt 00:00:05]} 54. Bd6 {[%clk 00:00:33]} {[%emt 00:00:04]}
hxg4 {[%clk 00:00:38]} {[%emt 00:00:15]} 55. fxg4 {[%clk 00:00:36]} {[%emt
00:00:07]} Kg7 {[%clk 00:00:30]} {[%emt 00:00:18]} 56. c7 {[%clk 00:00:45]}
{[%emt 00:00:02]} Bxc7 {[%clk 00:00:39]} {[%emt 00:00:01]} 57. Bxc7 {[%clk
00:00:53]} {[%emt 00:00:02]} f6 {[%clk 00:00:46]} {[%emt 00:00:03]} 58. h4
{[%clk 00:00:53]} {[%emt 00:00:09]} gxh4 {[%clk 00:00:54]} {[%emt 00:00:03]} 59.
Kh3 {[%clk 00:01:02]} Kh6 {[%clk 00:00:51]} {[%emt 00:00:14]} 60. Kxh4 {[%clk
00:01:09]} {[%emt 00:00:03]} Kg7 {[%clk 00:01:00]} 61. Kh5 {[%clk 00:00:51]}
{[%emt 00:00:28]} Kf7 {[%clk 00:01:05]} {[%emt 00:00:05]} 62. Kh6 {[%clk
00:00:56]} {[%emt 00:00:05]} Kf8 {[%emt 00:00:24]} 63. Bxe5 {[%clk 00:00:44]}
{[%emt 00:00:21]} fxe5 {[%clk 00:00:57]} {[%emt 00:00:05]} 64. Kh7 {[%clk
00:00:53]} Ke7 {[%emt 00:00:25]} 65. g5 {[%clk 00:00:59]} {[%emt 00:00:03]} Kf7
{[%clk 00:00:52]} 66. g6+ {[%clk 00:01:08]} {[%emt 00:00:02]} Kf6 {[%clk
00:01:01]} 67. g7 {[%clk 00:01:15]} {[%emt 00:00:02]} Kxf5 {[%clk 00:01:10]}
{[%emt 00:00:02]} 68. g8=Q {[%clk 00:01:23]} {[%emt 00:00:02]} Ke4 {[%clk
00:01:13]} {[%emt 00:00:07]} 69. Qg1 {[%clk 00:01:26]} {[%emt 00:00:07]} Kd3
{[%clk 00:01:13]} {[%emt 00:00:10]} 70. Qe1 {[%clk 00:01:34]} {[%emt 00:00:02]}
e4 {[%clk 00:01:22]} {[%emt 00:00:02]} 71. Kg6 {[%clk 00:01:42]} {[%emt
00:00:01]} e3 {[%clk 00:01:31]} {[%emt 00:00:01]} 72. Kf5 {[%clk 00:01:51]} 1-0

[Event "Kwalificatie NJK A Groningen"]
[Site "Hoogkerk, Netherlands"]
[Date "2023.02.18"]
[Round "3.9"]
[White "Van Lieshout, Tobias"]
[Black "Den Heijer, Rolinde"]
[Result "0-1"]
[TimeControl "55 min. + 10 sec./zet"]
[WhiteElo "1128"]
[BlackElo "1831"]

1. e4 {[%clk 00:55:18]} {[%emt 00:00:02]} c5 {[%clk 00:55:17]} {[%emt
00:00:04]} 2. Nf3 {[%clk 00:55:20]} {[%emt 00:00:07]} d6 {[%clk 00:55:23]}
{[%emt 00:00:04]} 3. Bc4 {[%clk 00:55:19]} {[%emt 00:00:11]} Nc6 {[%clk
00:55:13]} {[%emt 00:00:19]} 4. c3 {[%clk 00:55:10]} {[%emt 00:00:19]} Nf6
{[%clk 00:55:09]} {[%emt 00:00:15]} 5. d3 {[%clk 00:54:59]} {[%emt 00:00:21]}
g6 {[%clk 00:55:02]} {[%emt 00:00:16]} 6. Bf4 {[%clk 00:54:27]} {[%emt
00:00:42]} Bg7 {[%clk 00:54:45]} {[%emt 00:00:28]} 7. Nbd2 {[%clk 00:54:19]}
{[%emt 00:00:18]} O-O {[%clk 00:54:35]} {[%emt 00:00:20]} 8. d4 {[%clk
00:54:17]} {[%emt 00:00:12]} cxd4 {[%clk 00:52:56]} {[%emt 00:01:49]} 9. cxd4
{[%clk 00:53:48]} {[%emt 00:00:39]} Nxe4 {[%clk 00:51:13]} {[%emt 00:01:52]} 10.
Nxe4 {[%clk 00:51:26]} {[%emt 00:02:31]} d5 {[%clk 00:51:08]} {[%emt 00:00:16]}
11. Bxd5 {[%clk 00:50:35]} {[%emt 00:01:01]} Qxd5 {[%clk 00:51:03]} {[%emt
00:00:16]} 12. Neg5 {[%clk 00:50:23]} {[%emt 00:00:20]} h6 {[%clk 00:49:45]}
{[%emt 00:01:29]} 13. Nh3 {[%clk 00:49:43]} {[%emt 00:00:51]} Nxd4 {[%clk
00:48:50]} {[%emt 00:01:05]} 14. Nxd4 {[%clk 00:49:07]} {[%emt 00:00:46]} Bxh3
{[%clk 00:47:53]} {[%emt 00:01:07]} 15. Rg1 {[%clk 00:48:26]} {[%emt 00:00:50]}
Bxg2 {[%clk 00:45:04]} {[%emt 00:02:59]} 16. f3 {[%clk 00:46:58]} {[%emt
00:01:39]} Qxd4 {[%clk 00:44:12]} {[%emt 00:01:01]} 17. Qxd4 {[%clk 00:46:30]}
{[%emt 00:00:38]} Bxd4 {[%clk 00:44:14]} {[%emt 00:00:08]} 18. Rxg2 {[%clk
00:46:36]} {[%emt 00:00:04]} Kg7 {[%clk 00:43:26]} {[%emt 00:00:58]} 19. Rd1
{[%clk 00:45:14]} {[%emt 00:01:33]} Rfd8 {[%clk 00:41:54]} {[%emt 00:01:42]} 20.
Rgd2 {[%clk 00:45:09]} {[%emt 00:00:14]} Bb6 {[%clk 00:41:46]} {[%emt
00:00:19]} 21. Rd7 {[%clk 00:44:57]} {[%emt 00:00:22]} Ba5+ {[%clk 00:35:07]}
{[%emt 00:06:48]} 22. Kf1 {[%clk 00:44:53]} {[%emt 00:00:13]} g5 {[%clk
00:34:16]} {[%emt 00:01:03]} 23. Be3 {[%clk 00:43:22]} {[%emt 00:01:41]} Rac8
{[%clk 00:32:02]} {[%emt 00:02:24]} 24. Bxa7 {[%clk 00:42:08]} {[%emt
00:01:23]} Rxd7 {[%clk 00:31:43]} {[%emt 00:00:29]} 25. Rxd7 {[%clk 00:42:05]}
{[%emt 00:00:14]} Rc7 {[%clk 00:31:37]} {[%emt 00:00:15]} 26. Rd5 {[%clk
00:41:43]} {[%emt 00:00:32]} Bb4 {[%clk 00:30:37]} {[%emt 00:01:11]} 27. Re5
{[%clk 00:41:15]} {[%emt 00:00:37]} Bd6 {[%clk 00:29:08]} {[%emt 00:01:39]} 28.
Bd4 {[%clk 00:41:01]} {[%emt 00:00:25]} Kg6 {[%clk 00:28:40]} {[%emt 00:00:37]}
29. Re2 {[%clk 00:40:44]} {[%emt 00:00:27]} Kf5 {[%clk 00:28:11]} {[%emt
00:00:39]} 30. Bg7 {[%clk 00:39:34]} {[%emt 00:01:20]} f6 {[%clk 00:24:56]}
{[%emt 00:03:25]} 31. Bxh6 {[%clk 00:39:20]} {[%emt 00:00:24]} Kg6 {[%clk
00:24:56]} {[%emt 00:00:10]} 32. Bf8 {[%clk 00:38:32]} {[%emt 00:00:58]} Kf7
{[%clk 00:24:43]} {[%emt 00:00:23]} 33. Bh6 {[%clk 00:38:23]} {[%emt 00:00:19]}
Rc4 {[%clk 00:23:26]} {[%emt 00:01:27]} 34. Rg2 {[%clk 00:37:44]} {[%emt
00:00:49]} Kg6 {[%clk 00:22:32]} {[%emt 00:01:05]} 35. Bf8 {[%clk 00:36:54]}
{[%emt 00:00:59]} Rc8 {[%clk 00:22:14]} {[%emt 00:00:28]} 36. Bxe7 {[%clk
00:36:54]} {[%emt 00:00:10]} Bxe7 {[%clk 00:22:19]} {[%emt 00:00:05]} 37. h4
{[%clk 00:36:48]} {[%emt 00:00:16]} Rc1+ {[%clk 00:22:09]} {[%emt 00:00:20]}
0-1